bitfinex/quotes_ETHUSD_20230113
["timestamp","ask_amount","ask_price","bid_price","bid_amount"]
[1673649624269,24.687889,1463.5,1463.3,0.066]
[1673649624436,24.687889,1463.5,1463.0,12.57529267]
[1673649624652,24.687889,1463.5,1463.1,4.15395001]
[1673649624866,13.66792,1463.3,1463.0,13.49983009]
[1673649625178,13.73392,1463.3,1463.0,10.066]
[1673649625585,0.066,1463.3,1463.0,10.066]
[1673649625795,0.25347889,1463.3,1463.0,10.066]
[1673649626050,2.5,1463.3,1463.0,10.066]
[1673649626904,0.066,1463.4,1463.0,10.066]
[1673649627216,0.066,1463.4,1463.0,10.77456401]
[1673649627217,13.66704,1463.4,1463.0,10.77456401]
[1673649627383,20.56656,1463.4,1463.0,10.066]
[1673649627578,11.390756,1463.3,1463.1,3.0]
[1673649627788,11.456756,1463.3,1463.1,3.0]
[1673649628058,18.290856,1463.3,1463.1,3.0]
[1673649628417,6.9001,1463.3,1463.1,3.0]
[1673649628683,6.89986,1463.3,1463.0,10.066]
[1673649628889,13.73373,1463.3,1463.0,10.066]
[1673649629050,2.5,1463.2,1463.0,10.066]
[1673649629489,0.066,1463.3,1463.0,13.49983009]
[1673649629718,6.89917,1463.5,1463.0,13.49983009]
[1673649629999,6.89917,1463.5,1463.1,0.67872814]
[1673649630000,0.066,1463.5,1463.1,0.67872814]
[1673649630198,2.566,1463.6,1463.1,7.51324814]
[1673649630413,9.33253,1463.6,1463.1,6.90052]
[1673649630634,13.00691469,1463.6,1463.1,8.0745588]
[1673649631064,6.17438469,1463.6,1463.1,18.34318889]
[1673649631283,2.566,1463.6,1463.1,18.34318889]
[1673649631493,2.5,1463.6,1463.1,18.34318889]
[1673649631935,16.16496,1463.6,1463.1,1.2400388]
[1673649632103,16.23096,1463.6,1463.1,3.0]
[1673649632313,1.623096,1463.5,1463.1,3.0]
[1673649632524,6.83341,1463.4,1463.1,3.0]
[1673649632727,6.89941,1463.4,1463.1,3.0]
[1673649632965,13.7329,1463.4,1463.1,3.0]
[1673649633185,6.89941,1463.4,1463.1,3.0]
[1673649633371,9.1183086,1463.4,1463.1,3.0]
[1673649633599,2.2848986,1463.4,1463.1,3.0]
[1673649633918,8.456216,1463.5,1463.1,23.50438]
[1673649633919,1.689096,1463.5,1463.1,23.50438]
[1673649634091,1.623096,1463.5,1463.1,24.7424188]
[1673649634302,2.566,1463.6,1463.1,24.7444188]
[1673649634665,2.5,1463.6,1463.1,29.18226694]
[1673649635038,18.90249,1463.7,1463.1,29.18226694]
[1673649635242,18.90249,1463.7,1463.2,7.51451128]
[1673649635456,1.890249,1463.6,1463.2,14.41484128]
[1673649635700,1.890249,1463.6,1463.2,13.73437]
[1673649636119,25.7347,1463.7,1463.2,13.73437]
[1673649636676,25.7347,1463.7,1463.2,20.5687]
[1673649636843,25.7347,1463.7,1463.2,20.3687]
[1673649637061,25.7347,1463.7,1463.2,0.066]
[1673649637260,32.56696,1463.7,1463.2,6.8343]
[1673649637465,29.34292769,1463.7,1463.2,20.56896]
[1673649637718,3.43383009,1463.6,1463.2,0.066]
[1673649637894,13.66604,1463.5,1463.1,4.07001805]
[1673649638126,16.23204,1463.5,1463.2,0.68039102]
[1673649638459,0.066,1463.5,1463.3,10.26769009]
[1673649638667,6.83286,1463.6,1463.3,0.066]
[1673649638976,0.683286,1463.5,1463.2,6.83405]
[1673649639194,10.34804687,1463.7,1463.3,6.83384]
[1673649639195,9.39804,1463.7,1463.3,6.83384]
[1673649639354,2.566,1463.7,1463.3,13.7337]
[1673649639565,10.34811687,1463.7,1463.3,6.89984]
[1673649639779,17.24622687,1463.7,1463.3,0.066]
[1673649640009,24.07833687,1463.7,1463.2,13.73412]
[1673649640267,24.07833687,1463.7,1463.2,0.066]
[1673649640268,9.24040369,1463.6,1463.2,0.066]
[1673649640417,16.13897369,1463.6,1463.1,16.73497]
[1673649640626,22.97154369,1463.6,1463.1,3.066]
[1673649640875,2.5,1463.5,1463.1,3.0]
[1673649641045,13.66694,1463.4,1463.1,3.0]
[1673649641257,22.866402,1463.4,1463.1,3.0]
[1673649641897,2.5,1463.3,1463.1,3.0]
[1673649642111,16.1679,1463.3,1463.1,3.0]
[1673649642309,9.39986,1463.3,1463.1,3.0]
[1673649642520,2.566,1463.3,1463.1,3.0]
[1673649642745,1.8533242,1463.3,1463.1,3.0]
[1673649643040,0.066,1463.4,1463.1,26.93820009]
[1673649643388,2.5,1463.5,1463.1,28.14214121]
[1673649643598,2.5,1463.5,1463.1,24.70831112]
[1673649643928,0.25,1463.4,1463.1,11.03874112]
[1673649644247,0.25,1463.4,1463.1,16.7356]
[1673649644455,12.0583,1463.6,1463.1,24.57441805]
[1673649644788,12.0583,1463.6,1463.2,4.11551141]
[1673649644789,2.566,1463.6,1463.2,4.11551141]
[1673649645088,2.5,1463.6,1463.3,20.5014]
[1673649645280,2.5,1463.6,1463.3,20.5674]
[1673649645489,2.5,1463.6,1463.3,6.89977]
[1673649645723,3.10820069,1463.6,1463.3,0.066]
[1673649645889,3.10820069,1463.6,1463.2,0.066]
[1673649646104,9.94095069,1463.6,1463.1,17.67297805]
[1673649646296,3.17420069,1463.6,1463.2,0.68198232]
[1673649646507,3.10820069,1463.6,1463.2,7.51628232]
[1673649646718,0.31082007,1463.5,1463.2,6.9003]
[1673649647347,0.31082007,1463.5,1463.2,0.066]
[1673649647664,0.31082007,1463.5,1463.2,13.6686]
[1673649647869,0.31082007,1463.5,1463.2,21.57294805]
[1673649648323,8.10820069,1463.6,1463.2,21.57294805]
[1673649648324,5.066,1463.6,1463.3,5.12841604]
[1673649648531,5.066,1463.6,1463.4,7.5238679]
[1673649648745,5.066,1463.6,1463.4,6.8993]
[1673649649014,5.066,1463.6,1463.4,0.066]
[1673649649224,5.066,1463.6,1463.3,1.07001805]
[1673649649371,5.066,1463.6,1463.4,7.52406277]
[1673649649585,5.066,1463.6,1463.4,6.89935]
[1673649650247,5.066,1463.6,1463.4,13.73275]
[1673649650476,5.066,1463.6,1463.4,6.89935]
[1673649650788,5.066,1463.6,1463.4,0.066]
[1673649651004,5.066,1463.6,1463.3,7.90357805]
[1673649651312,5.066,1463.6,1463.4,0.69233673]
[1673649651524,7.622277,1463.6,1463.4,0.69233673]
[1673649651746,14.454777,1463.6,1463.3,1.69635478]
[1673649651894,2.5,1463.5,1463.3,1.00401805]
[1673649652111,2.5,1463.5,1463.3,1.69623687]
[1673649652425,2.5,1463.5,1463.4,0.69203932]
[1673649652794,4.1954777,1463.5,1463.3,1.69605737]
[1673649653116,4.1954777,1463.5,1463.4,0.69203932]
[1673649653314,17.8613377,1463.5,1463.2,2.57529267]
[1673649653477,17.9273377,1463.5,1463.3,1.69591718]
[1673649653838,1.78613377,1463.4,1463.2,1.00401805]
[1673649654156,1.78613377,1463.4,1463.2,1.69597762]
[1673649654313,1.78613377,1463.4,1463.2,4.69597762]
[1673649654518,1.78613377,1463.4,1463.3,0.69195957]
[1673649655195,8.61953377,1463.4,1463.3,0.69195957]
[1673649655411,22.35233377,1463.4,1463.2,0.066]
[1673649655571,22.35233377,1463.4,1463.0,1.07001805]
[1673649655572,21.36353338,1463.3,1463.0,1.07001805]
[1673649655791,21.42953338,1463.3,1463.0,1.00401805]
[1673649656009,0.92795338,1463.3,1463.1,0.62272858]
[1673649656219,2.80214064,1463.4,1463.0,21.50948805]
[1673649656220,1.78613377,1463.4,1463.0,21.50948805]
[1673649656430,1.78813377,1463.4,1463.2,13.66866]
[1673649656676,1.78813377,1463.4,1463.2,6.90033]
[1673649656677,1.78613377,1463.4,1463.2,6.90033]
[1673649656833,11.0944377,1463.5,1463.2,0.066]
[1673649657044,17.9273977,1463.5,1463.1,1.07001805]
[1673649657253,3.43120447,1463.4,1463.0,1.07001805]
[1673649657509,13.66792,1463.3,1463.0,0.62237966]
[1673649657738,13.66792,1463.3,1462.9,2.50929267]
[1673649657739,2.5,1463.2,1462.9,2.50929267]
[1673649657886,10.701392,1463.2,1462.9,3.13183393]
[1673649658094,10.701392,1463.2,1462.8,0.05]
[1673649658095,4.44983696,1463.1,1462.8,0.05]
[1673649658303,4.44983696,1463.1,1462.8,0.016]
[1673649658304,16.6155037,1463.0,1462.8,0.016]
[1673649658564,16.6815037,1463.0,1462.8,0.016]
[1673649658779,14.1815037,1463.0,1462.8,0.016]
[1673649658934,14.1815037,1463.0,1462.7,1.01455147]
[1673649659416,15.19751057,1463.0,1462.6,1.0708466]
[1673649659578,1.51975106,1462.9,1462.6,0.05629513]
[1673649659802,8.35568106,1462.9,1462.6,0.05629513]
[1673649660022,8.42168106,1462.9,1462.6,0.05629513]
[1673649660200,0.066,1462.9,1462.6,0.05629513]
[1673649660411,8.7025,1463.1,1462.6,11.34134669]
[1673649660668,0.066,1463.1,1462.7,11.01455147]
[1673649660825,22.89750003,1463.3,1462.7,11.08055147]
[1673649660826,21.42960687,1463.3,1462.7,11.08055147]
[1673649661035,2.14296069,1463.2,1462.8,3.51455147]
[1673649661678,20.4136,1463.3,1463.0,2.5]
[1673649661887,20.4136,1463.3,1462.9,4.08055147]
[1673649661888,0.066,1463.3,1462.9,4.08055147]
[1673649662108,8.8045,1463.4,1462.9,10.84996147]
[1673649662332,8.8045,1463.4,1462.9,10.91596147]
[1673649662506,8.8045,1463.4,1462.9,4.08055147]
[1673649662716,0.88045,1463.3,1462.9,4.01455147]
[1673649664659,0.88045,1463.3,1462.9,3.0]
[1673649664819,0.88045,1463.3,1462.9,4.01455147]
[1673649665029,8.8045,1463.4,1462.9,10.85015147]
[1673649665251,8.8045,1463.4,1462.9,4.08055147]
[1673649665486,8.8045,1463.4,1462.9,4.01455147]
[1673649665873,11.3045,1463.4,1462.9,4.01455147]
[1673649666180,1.13045,1463.3,1463.0,3.0]
[1673649666393,1.13045,1463.3,1462.9,1.08055147]
[1673649666659,1.13045,1463.3,1462.9,1.01455147]
[1673649667002,7.96464,1463.3,1462.9,1.01455147]
[1673649667183,8.03031,1463.3,1462.9,1.01455147]
[1673649667498,0.803031,1463.2,1462.9,1.01455147]
[1673649667654,10.137621,1463.2,1462.8,5.60128976]
[1673649667864,7.703621,1463.2,1462.8,4.08055147]
[1673649668135,0.869031,1463.2,1462.8,4.01455147]
[1673649668280,0.803031,1463.2,1462.8,9.83593]
[1673649668494,1.0,1463.2,1462.8,9.90193]
[1673649669068,1.0,1463.2,1462.8,3.066]
[1673649669278,1.0,1463.2,1462.8,3.0]
[1673649670012,1.0,1463.2,1462.8,6.43383009]
[1673649670176,1.0,1463.2,1462.8,7.51438156]
[1673649670598,1.0,1463.2,1462.8,14.35052156]
[1673649670849,1.0,1463.2,1462.8,4.08055147]
[1673649671071,14.66897,1463.2,1462.8,4.01455147]
[1673649671232,1.066,1463.2,1462.8,4.01455147]
[1673649671441,1.0,1463.2,1462.8,4.01455147]
[1673649671686,0.1,1463.1,1462.8,4.01455147]
[1673649672065,0.1,1463.1,1462.8,10.85068147]
[1673649672276,1.0,1463.2,1462.8,17.75288147]
[1673649672531,1.0,1463.2,1462.8,18.73853127]
[1673649674295,1.0,1463.2,1462.8,25.57473127]
[1673649674735,1.0,1463.2,1462.8,27.09546956]
[1673649676739,1.0,1463.2,1462.9,1.01455147]
[1673649677054,1.0,1463.2,1462.9,7.85010147]
[1673649677233,1.0,1463.2,1462.9,21.58544579]
[1673649677976,1.0,1463.2,1462.9,6.90155]
[1673649678203,2.579847,1463.2,1462.9,6.90155]
[1673649678374,1.0,1463.2,1463.0,0.48352249]
[1673649678577,1.0,1463.2,1463.1,13.6696]
[1673649678834,1.0,1463.2,1463.1,6.9008]
[1673649679210,1.0,1463.2,1463.1,20.5704]
[1673649680050,1.0,1463.2,1463.1,21.05390264]
[1673649680507,1.0,1463.2,1463.1,14.21910264]
[1673649680787,1.0,1463.2,1463.1,21.05390264]
[1673649681000,1.0,1463.2,1463.1,14.21910264]
[1673649681468,1.0,1463.2,1463.1,0.54950264]
[1673649681783,1.0,1463.2,1463.1,0.48350264]
[1673649681940,1.0,1463.2,1463.1,14.15310264]
[1673649682316,1.0,1463.2,1463.1,14.21910264]
[1673649683679,1.0,1463.2,1463.1,21.05390264]
[1673649683835,1.0,1463.2,1463.1,14.21910264]
[1673649684045,1.0,1463.2,1463.1,7.38430264]
[1673649684295,1.0,1463.2,1463.1,0.066]
[1673649684509,1.0,1463.2,1463.0,3.00589868]
[1673649684510,14.76866,1463.2,1463.0,3.00589868]
[1673649684671,14.76866,1463.2,1463.0,0.00589868]
[1673649684672,6.8348,1463.1,1463.0,0.00589868]
[1673649684883,13.7356,1463.1,1463.0,0.48964731]
[1673649685152,6.9008,1463.1,1463.0,0.48964731]
[1673649685302,0.066,1463.1,1463.0,0.00589868]
[1673649685679,1.1,1463.2,1463.0,3.48964731]
[1673649685895,1.1,1463.2,1463.0,3.00589868]
[1673649686038,1.1,1463.2,1463.0,16.67637868]
[1673649686252,1.1,1463.2,1463.0,16.74237868]
[1673649686722,3.54383009,1463.1,1463.0,0.066]
[1673649687036,6.9448,1463.1,1462.7,0.066]
[1673649687262,6.9448,1463.1,1462.6,1.64303342]
[1673649687263,0.69448,1463.0,1462.6,1.64303342]
[1673649687407,7.53577868,1463.0,1462.6,2.59205206]
[1673649687766,0.76637868,1463.0,1462.7,0.40114721]
[1673649687979,0.70037868,1463.0,1462.7,0.40114721]
[1673649688156,0.00589868,1463.0,1462.7,0.40114721]
[1673649689545,0.00589868,1463.0,1462.6,7.97435377]
[1673649689755,20.51171868,1463.0,1462.6,1.13731377]
[1673649689922,20.57771868,1463.0,1462.7,0.40124223]
[1673649690136,20.57771868,1463.0,1462.6,0.05629513]
[1673649690137,27.3448,1462.8,1462.6,0.05629513]
[1673649690349,0.066,1462.8,1462.6,0.05629513]
[1673649690576,0.066,1462.9,1462.6,6.89326513]
[1673649690801,34.26017868,1463.0,1462.6,0.12229513]
[1673649691012,6.8358,1462.9,1462.6,0.05629513]
[1673649691206,4.17559787,1462.9,1462.6,0.05629513]
[1673649691552,10.94536787,1462.9,1462.6,3.05629513]
[1673649691710,4.17559787,1462.9,1462.6,0.05629513]
[1673649691925,4.10959787,1462.9,1462.6,20.56761513]
[1673649692135,20.58939868,1463.0,1462.6,13.79648513]
[1673649692917,27.42472868,1463.0,1462.6,6.95935513]
[1673649693545,27.42472868,1463.0,1462.6,20.63361513]
[1673649693546,20.58939868,1463.0,1462.6,20.63361513]
[1673649693723,30.85849877,1463.0,1462.6,0.12229513]
[1673649693926,2.05893987,1462.9,1462.6,6.89338513]
[1673649694145,2.05893987,1462.9,1462.6,6.95938513]
[1673649694381,2.05893987,1462.9,1462.6,13.79655513]
[1673649694981,2.05893987,1462.9,1462.6,6.95942513]
[1673649695187,2.05893987,1462.9,1462.6,13.79655513]
[1673649695433,20.58939868,1463.0,1462.6,20.63368513]
[1673649696278,20.58939868,1463.0,1462.6,13.79655513]
[1673649696619,41.09551868,1463.0,1462.6,1.13731377]
[1673649696768,44.52934877,1463.0,1462.7,0.4015916]
[1673649696984,44.52934877,1463.0,1462.7,13.67333]
[1673649696985,4.10955187,1462.9,1462.7,13.67333]
[1673649697204,4.10955187,1462.9,1462.7,13.73933]
[1673649697408,4.10955187,1462.9,1462.7,6.90266]
[1673649698482,4.10955187,1462.9,1462.7,0.066]
[1673649698670,4.10955187,1462.9,1462.6,7.97399377]
[1673649698902,0.41095519,1462.8,1462.7,0.40153326]
[1673649700971,27.42466868,1463.0,1462.7,0.40153326]
[1673649701294,20.50719,1462.9,1462.7,0.40153326]
[1673649701505,20.57319,1462.9,1462.7,0.40153326]
[1673649701960,13.73746,1462.9,1462.7,0.40153326]
[1673649702287,10.27003009,1462.8,1462.6,0.05629513]
[1673649702499,1.02700301,1462.7,1462.6,0.05629513]
[1673649702817,1.02700301,1462.7,1462.6,0.45768376]
[1673649703189,0.066,1462.8,1462.6,0.45768376]
[1673649703401,20.58939868,1463.0,1462.6,20.56768513]
[1673649703728,24.02322877,1463.0,1462.6,20.63368513]
[1673649703923,24.02322877,1463.0,1462.6,13.79655513]
[1673649704128,2.40232288,1462.9,1462.6,13.79655513]
[1673649704393,2.40232288,1462.9,1462.6,6.95942513]
[1673649704603,5.83615297,1462.9,1462.7,0.40134141]
[1673649704775,12.73810297,1462.9,1462.6,0.05629513]
[1673649704990,0.5836153,1462.8,1462.6,0.05629513]
[1673649705210,0.5836153,1462.8,1462.6,0.45756651]
[1673649705554,0.5836153,1462.8,1462.6,8.30958212]
[1673649705867,2.40232288,1462.9,1462.7,0.40122835]
[1673649706188,4.90232288,1462.9,1462.6,7.97435377]
[1673649706337,4.90232288,1462.9,1462.7,0.40127248]
[1673649706551,4.90232288,1462.9,1462.6,7.97435377]
[1673649706762,3.92406238,1462.8,1462.6,0.12229513]
[1673649706972,17.59657238,1462.8,1462.6,0.05629513]
[1673649707198,17.66257238,1462.8,1462.6,0.05629513]
[1673649707407,10.82626238,1462.8,1462.6,0.05629513]
[1673649707617,1.08262624,1462.7,1462.6,0.05629513]
[1673649707869,1.08262624,1462.7,1462.6,0.45785943]
[1673649708057,0.49023229,1462.8,1462.6,0.45785943]
[1673649708268,0.49023229,1462.8,1462.6,0.05629513]
[1673649709977,7.32659229,1462.8,1462.6,0.05629513]
[1673649710197,7.39259229,1462.8,1462.6,0.05629513]
[1673649710387,0.73925923,1462.7,1462.6,0.05629513]
[1673649710578,0.73925923,1462.7,1462.6,0.4578743]
[1673649710995,0.49023229,1462.8,1462.6,7.2950043]
[1673649711225,0.49023229,1462.8,1462.6,6.95942513]
[1673649712733,2.40232288,1462.9,1462.6,6.95942513]
[1673649713342,2.40232288,1462.9,1462.6,13.79655513]
[1673649714151,2.40232288,1462.9,1462.6,20.63368513]
[1673649714359,2.40232288,1462.9,1462.7,0.40090234]
[1673649714569,2.40232288,1462.9,1462.7,7.23745234]
[1673649714817,0.24023229,1462.8,1462.7,0.066]
[1673649715024,0.24023229,1462.8,1462.7,8.25271259]
[1673649715247,2.40232288,1462.9,1462.7,15.15538259]
[1673649715452,2.40232288,1462.9,1462.8,0.40102395]
[1673649715885,2.40005502,1462.9,1462.8,0.40102395]
[1673649716274,23.94102009,1462.9,1462.6,1.13731377]
[1673649716484,3.43383009,1462.8,1462.7,0.40138453]
[1673649716813,0.066,1462.9,1462.7,7.23805453]
[1673649717027,2.50589868,1463.0,1462.7,6.90267]
[1673649717357,2.50589868,1463.0,1462.8,0.40142327]
[1673649717775,5.93972877,1463.0,1462.8,0.40142327]
[1673649718096,6.00572877,1463.0,1462.7,6.90267]
[1673649718257,9.88222365,1463.0,1462.7,6.90267]
[1673649719145,3.94839356,1463.0,1462.8,0.40127527]
[1673649719315,17.55305356,1463.0,1462.8,0.40127527]
[1673649719524,6.44839356,1463.0,1462.7,1.01501864]
[1673649719753,3.43383009,1462.9,1462.6,1.1603113]
[1673649719967,0.34338301,1462.8,1462.7,0.40149481]
[1673649720323,0.34338301,1462.8,1462.6,14.7683013]
[1673649720641,0.34338301,1462.8,1462.6,1.1603113]
[1673649720852,0.34338301,1462.8,1462.6,1.0943113]
[1673649721063,1.34338301,1462.8,1462.6,1.0943113]
[1673649721220,1.34338301,1462.8,1462.6,1.49570451]
[1673649721436,1.34338301,1462.8,1462.7,0.40139321]
[1673649723354,1.34338301,1462.8,1462.7,1.41641185]
[1673649723588,1.0,1462.8,1462.7,23.04576693]
[1673649723775,1.0,1462.8,1462.7,16.67649014]
[1673649723971,1.0,1462.8,1462.7,15.6614715]
[1673649724190,0.26119204,1462.8,1462.7,17.6695076]
[1673649724408,0.26119204,1462.8,1462.7,2.47542931]
[1673649724617,0.26119204,1462.8,1462.7,2.40942931]
[1673649724826,0.26119204,1462.8,1462.7,3.93630118]
[1673649725241,0.26119204,1462.8,1462.7,2.40942931]
[1673649725671,0.26119204,1462.8,1462.7,4.98553349]
[1673649726054,0.26119204,1462.8,1462.7,24.35669424]
[1673649726289,0.26119204,1462.8,1462.7,24.42269424]
[1673649727327,0.26119204,1462.8,1462.7,34.69820903]
[1673649727328,0.04862197,1462.8,1462.7,34.69820903]
[1673649727544,0.04862197,1462.8,1462.7,27.86153903]
[1673649727966,0.04862197,1462.8,1462.7,18.03955115]
[1673649728200,0.04862197,1462.8,1462.7,13.75292332]
[1673649728367,0.04862197,1462.8,1462.7,19.69077538]
[1673649728996,0.04862197,1462.8,1462.7,9.85285802]
[1673649729251,0.04862197,1462.8,1462.7,11.892414]
[1673649730023,0.04862197,1462.8,1462.7,9.34361919]
[1673649730472,0.04862197,1462.8,1462.7,23.01695919]
[1673649730682,0.04862197,1462.8,1462.7,16.18028919]
[1673649731262,0.04862197,1462.8,1462.7,9.34361919]
[1673649731566,0.04862197,1462.8,1462.7,20.97740321]
[1673649731732,0.04862197,1462.8,1462.7,23.97740321]
[1673649731939,0.04862197,1462.8,1462.7,27.89376862]
[1673649732149,0.04862197,1462.8,1462.7,14.22042862]
[1673649732471,0.04862197,1462.8,1462.7,19.68963675]
[1673649732676,0.04862197,1462.8,1462.7,20.12605109]
[1673649733837,0.04862197,1462.8,1462.7,26.96272109]
[1673649734193,0.04862197,1462.8,1462.7,23.97740321]
[1673649735666,0.04862197,1462.8,1462.7,26.96272109]
[1673649736698,0.04862197,1462.8,1462.7,23.97740321]
[1673649737107,0.04862197,1462.8,1462.7,26.51958489]
[1673649737318,0.0096651,1462.8,1462.7,26.51958489]
[1673649739127,0.002891,1462.8,1462.7,26.51958489]
[1673649740181,0.002891,1462.8,1462.7,23.97740321]
[1673649740871,0.000346,1462.8,1462.7,23.97740321]
[1673649741449,0.000346,1462.8,1462.7,26.51637217]
[1673649741607,0.000346,1462.8,1462.7,28.54751336]
[1673649741947,0.000346,1462.8,1462.7,26.0085444]
[1673649742979,0.000346,1462.8,1462.7,23.0085444]
[1673649743714,0.000346,1462.8,1462.7,25.54751336]
[1673649743975,0.000346,1462.8,1462.7,23.51637217]
[1673649744502,0.000346,1462.8,1462.7,26.01637217]
[1673649744707,0.000346,1462.8,1462.7,26.47740321]
[1673649744918,0.000346,1462.8,1462.7,23.97740321]
[1673649745293,0.000346,1462.8,1462.7,28.46272109]
[1673649745506,0.000346,1462.8,1462.7,23.97740321]
[1673649745862,0.000346,1462.8,1462.7,30.39655118]
[1673649747312,1.00589868,1463.2,1462.9,0.001654]
[1673649747649,1.00589868,1463.2,1463.0,1.01492734]
[1673649747824,1.00589868,1463.2,1462.9,2.53897235]
[1673649747825,7.84027868,1463.2,1462.9,2.53897235]
[1673649748034,0.78402787,1463.1,1463.0,1.35171089]
[1673649748253,1.00589868,1463.2,1463.0,1.35171089]
[1673649748444,4.43972877,1463.2,1462.9,14.75368134]
[1673649748648,0.44397288,1463.1,1463.0,7.17195551]
[1673649748911,0.44397288,1463.1,1463.0,7.23795551]
[1673649749226,1.066,1463.2,1463.0,1.41774285]
[1673649749464,1.0,1463.2,1463.1,0.33681551]
[1673649749750,1.0,1463.2,1463.0,1.01492734]
[1673649749751,1.0,1463.2,1463.0,1.35174285]
[1673649749987,1.0,1463.2,1463.1,0.33681551]
[1673649750141,5.22972177,1463.2,1463.1,0.33681551]
[1673649750345,5.29572177,1463.2,1462.9,23.11140235]
[1673649750562,5.29572177,1463.2,1463.0,0.33677965]
[1673649750978,5.29572177,1463.2,1462.9,7.91798134]
[1673649751188,0.52957218,1463.1,1463.0,20.84264274]
[1673649751401,0.52957218,1463.1,1463.0,20.90864274]
[1673649751843,1.066,1463.2,1463.0,21.92357008]
[1673649752169,1.066,1463.2,1463.1,7.17166274]
[1673649752170,1.0,1463.2,1463.1,7.17166274]
[1673649752385,1.0,1463.2,1463.1,7.23766274]
[1673649753087,1.0,1463.2,1463.1,0.40286274]
[1673649753449,21.50299,1463.2,1463.1,1.35179008]
[1673649753792,21.56899,1463.2,1463.1,1.35179008]
[1673649753960,21.56899,1463.2,1463.1,1.01492734]
[1673649753961,1.066,1463.2,1463.1,1.01492734]
[1673649754164,1.0,1463.2,1463.1,1.01492734]
[1673649754377,1.0,1463.2,1463.1,1.35179008]
[1673649756008,1.0,1463.2,1463.1,1.34864685]
[1673649756439,1.0,1463.2,1462.7,2.03311821]
[1673649756440,2.5,1463.1,1462.7,2.03311821]
[1673649756646,2.5,1463.1,1463.0,0.054]
[1673649757476,2.5,1463.0,1462.5,0.12156709]
[1673649757689,2.5,1463.0,1462.5,0.05556709]
[1673649757690,6.83543,1463.0,1462.5,0.05556709]
[1673649757955,0.683543,1462.9,1462.5,0.05556709]
[1673649758274,0.683543,1462.9,1462.5,6.89300709]
[1673649758464,0.683543,1462.9,1462.5,6.95900709]
[1673649758801,0.683543,1462.9,1462.5,13.79660709]
[1673649758951,5.566,1463.1,1462.5,6.95900709]
[1673649759161,15.83470009,1463.1,1462.5,6.95900709]
[1673649759485,6.49983009,1463.1,1462.5,6.95900709]
[1673649759699,2.5,1463.0,1462.5,6.95900709]
[1673649759940,0.00589868,1462.9,1462.5,0.12156709]
[1673649760164,4.03370165,1462.9,1462.5,0.05556709]
[1673649760475,4.03370165,1462.9,1462.5,6.89313709]
[1673649760637,4.03370165,1462.9,1462.5,6.95913709]
[1673649761097,4.03370165,1462.9,1462.5,0.12156709]
[1673649761325,10.86951165,1462.9,1462.5,6.89312709]
[1673649761477,1.08695116,1462.8,1462.5,6.95912709]
[1673649761689,0.66587156,1462.9,1462.5,20.63432709]
[1673649761898,0.00589868,1462.9,1462.6,3.43383009]
[1673649762111,0.066,1463.1,1462.5,0.12156709]
[1673649762112,0.00589868,1463.0,1462.5,0.12156709]
[1673649762366,0.00589868,1463.0,1462.6,6.83704]
[1673649762577,0.00589868,1463.0,1462.6,20.5773]
[1673649763507,0.00589868,1463.0,1462.7,3.0]
[1673649764157,3.43383009,1462.9,1462.6,6.90312]
[1673649764496,3.43383009,1462.9,1462.7,13.67321]
[1673649764497,0.34338301,1462.8,1462.7,13.67321]
[1673649764789,0.34338301,1462.8,1462.7,6.90254]
[1673649765579,0.34338301,1462.8,1462.7,20.57588]
[1673649765799,5.02089868,1463.0,1462.7,6.90254]
[1673649766005,0.07189868,1463.0,1462.7,20.57588]
[1673649766214,0.07189868,1463.0,1462.7,13.73921]
[1673649766215,0.00589868,1463.0,1462.7,13.73921]
[1673649766450,0.00589868,1463.0,1462.7,16.27813042]
[1673649766637,0.00589868,1463.0,1462.7,2.60492042]
[1673649766996,1.36759687,1463.0,1462.7,2.53683618]
[1673649767153,15.03855687,1463.0,1462.9,1.01562613]
[1673649767514,11.70275696,1463.0,1462.9,1.01562613]
[1673649767687,1.43359687,1463.0,1462.9,1.01562613]
[1673649767897,31.3999,1463.2,1463.0,0.3739618]
[1673649768118,31.3999,1463.2,1463.0,1.38924825]
[1673649768119,1.166,1463.2,1463.0,1.38924825]
[1673649768311,1.1,1463.2,1463.0,8.22445825]
[1673649768521,1.1,1463.2,1463.0,21.96097825]
[1673649768753,1.1,1463.2,1463.0,15.12571825]
[1673649769153,1.1,1463.2,1463.0,1.45524825]
[1673649769510,7.9344,1463.2,1463.0,1.38924825]
[1673649769722,8.0004,1463.2,1463.0,1.38924825]
[1673649769885,0.80004,1463.1,1463.0,1.38924825]
[1673649770095,7.63484,1463.1,1463.0,1.38924825]
[1673649770326,7.70084,1463.1,1463.0,1.38924825]
[1673649770516,4.29987009,1463.1,1463.0,1.38924825]
[1673649770746,2.5,1463.0,1462.9,1.0150112]
[1673649771040,2.5,1463.0,1462.8,0.066]
[1673649771041,6.3638171,1463.0,1462.8,1.0150112]
[1673649771266,6.4298171,1463.0,1462.8,1.0150112]
[1673649771486,3.9298171,1463.0,1462.8,1.0150112]
[1673649771773,0.39298171,1462.9,1462.8,1.0150112]
[1673649772631,3.8268118,1462.9,1462.8,1.0150112]
[1673649773508,3.8268118,1462.9,1462.7,1.0150112]
[1673649773719,3.8268118,1462.9,1462.8,1.0150112]
[1673649773923,0.39298171,1462.9,1462.8,1.0150112]
[1673649774245,0.43588569,1463.0,1462.8,1.0150112]
[1673649774398,3.43383009,1462.9,1462.8,1.0150112]
[1673649774609,3.43383009,1462.9,1462.7,1.0150112]
[1673649774865,9.33714569,1463.0,1462.7,1.0150112]
[1673649775136,19.60623578,1463.0,1462.7,0.9150112]
[1673649775347,1.96062358,1462.9,1462.7,0.9150112]
[1673649775588,8.79640358,1462.9,1462.7,0.9150112]
[1673649775797,8.86240358,1462.9,1462.7,0.9150112]
[1673649776549,2.02662358,1462.9,1462.7,0.9150112]
[1673649776782,1.96062358,1462.9,1462.7,0.9150112]
[1673649776920,0.19606236,1462.8,1462.7,2.43639119]
[1673649777127,3.86971578,1463.0,1462.7,1.52137999]
[1673649777384,0.43588569,1463.0,1462.7,17.22538398]
[1673649777577,0.43588569,1463.0,1462.8,1.52137999]
[1673649777769,0.43588569,1463.0,1462.9,20.50719]